bitfinex/quotes_BTCUSD_20250616
["timestamp","ask_amount","ask_price","bid_price","bid_amount"]
[1750034106848,0.76679495,105740.0,105730.0,0.002]
[1750034107079,0.77567106,105740.0,105730.0,0.002]
[1750034107297,0.77567126,105740.0,105730.0,0.002]
[1750034107558,0.76679495,105740.0,105730.0,0.002]
[1750034108035,0.77567109,105740.0,105730.0,0.002]
[1750034108262,0.77567101,105740.0,105730.0,0.002]
[1750034108511,0.76679495,105740.0,105730.0,0.002]
[1750034108996,0.77567101,105740.0,105730.0,0.002]
[1750034109220,0.85519439,105740.0,105730.0,0.002]
[1750034109899,0.84631834,105740.0,105730.0,0.002]
[1750034110152,0.76679495,105740.0,105730.0,0.002]
[1750034110372,0.77567097,105740.0,105730.0,0.002]
[1750034110584,0.77567095,105740.0,105730.0,0.002]
[1750034110795,0.77567094,105740.0,105730.0,0.002]
[1750034111008,0.77567108,105740.0,105730.0,0.002]
[1750034111221,0.77567109,105740.0,105730.0,0.002]
[1750034111453,0.77567108,105740.0,105730.0,0.002]
[1750034111667,0.38154708,105740.0,105730.0,0.002]
[1750034111873,0.38154723,105740.0,105730.0,0.002]
[1750034112084,0.37267093,105740.0,105730.0,0.002]
[1750034112294,0.38154726,105740.0,105730.0,0.002]
[1750034112718,0.37267093,105740.0,105730.0,0.002]
[1750034112958,0.46195826,105740.0,105730.0,0.002]
[1750034113189,0.84720598,105740.0,105730.0,0.002]
[1750034113363,0.85608237,105740.0,105730.0,0.002]
[1750034113611,0.84720598,105740.0,105730.0,0.002]
[1750034113869,0.85608226,105740.0,105730.0,0.002]
[1750034114084,0.37267093,105740.0,105730.0,0.002]
[1750034114744,0.3815473,105740.0,105730.0,0.002]
[1750034114970,0.37267093,105740.0,105730.0,0.002]
[1750034115207,0.38154733,105740.0,105730.0,0.002]
[1750034115425,0.85608237,105740.0,105730.0,0.002]
[1750034115739,0.84720598,105740.0,105730.0,0.002]
[1750034115937,0.85608214,105740.0,105730.0,0.002]
[1750034116153,0.85608211,105740.0,105730.0,0.002]
[1750034116366,0.85608226,105740.0,105730.0,0.002]
[1750034116583,0.84720598,105740.0,105730.0,0.002]
[1750034117001,0.85608226,105740.0,105730.0,0.002]
[1750034117891,0.84720598,105740.0,105730.0,0.002]
[1750034118100,0.37267093,105740.0,105730.0,0.002]
[1750034118311,0.38154737,105740.0,105730.0,0.002]
[1750034118512,0.38154741,105740.0,105730.0,0.002]
[1750034118981,0.38154733,105740.0,105730.0,0.002]
[1750034119223,0.77567131,105740.0,105730.0,0.002]
[1750034119464,6.002324,105740.0,105730.0,0.002]
[1750034119691,6.00232395,105740.0,105730.0,0.002]
[1750034119898,6.00232389,105740.0,105730.0,0.002]
[1750034120115,5.99344774,105740.0,105730.0,0.001]
[1750034120827,6.00232389,105740.0,105730.0,0.001]
[1750034121064,5.05,105730.0,105710.0,0.15776]
[1750034121291,0.04087609,105730.0,105710.0,0.02266144]
[1750034121565,0.11800749,105730.0,105710.0,0.02266144]
[1750034122510,0.11800749,105730.0,105710.0,0.02366144]
[1750034122709,0.39412402,105720.0,105710.0,0.02366144]
[1750034123072,0.0164,105720.0,105710.0,0.001]
[1750034123258,0.3715,105730.0,105710.0,0.02466129]
[1750034123410,0.34,105730.0,105710.0,0.49136384]
[1750034123614,0.34887585,105730.0,105710.0,0.49036384]
[1750034123820,0.34887592,105730.0,105710.0,0.49036384]
[1750034124035,0.34,105730.0,105720.0,0.0163]
[1750034124241,0.34,105730.0,105720.0,0.44888422]
[1750034124444,0.34887619,105730.0,105720.0,0.44888426]
[1750034124765,0.34887619,105730.0,105720.0,0.05476024]
[1750034124766,0.3488761,105730.0,105720.0,0.05476024]
[1750034124971,0.34987609,105730.0,105720.0,0.05476024]
[1750034125181,0.34887609,105730.0,105720.0,0.05476024]
[1750034125398,0.34887587,105730.0,105720.0,0.05476024]
[1750034125614,0.341,105730.0,105720.0,0.05476024]
[1750034125823,0.34987517,105730.0,105720.0,0.05476024]
[1750034126229,0.34987506,105730.0,105720.0,0.0163]
[1750034126434,0.341,105730.0,105710.0,0.86666402]
[1750034126653,0.341,105730.0,105710.0,0.90512997]
[1750034126825,0.34987505,105730.0,105710.0,0.90512997]
[1750034127037,0.341,105730.0,105710.0,0.90512997]
[1750034127235,0.34,105730.0,105710.0,0.90512997]
[1750034127642,0.4144595,105730.0,105710.0,0.90513384]
[1750034127863,0.4144595,105730.0,105710.0,0.51100982]
[1750034129114,0.341,105730.0,105710.0,0.51100982]
[1750034129954,0.356,105730.0,105710.0,0.51104982]
[1750034130171,0.76542402,105730.0,105710.0,0.51104982]
[1750034130701,0.75012402,105730.0,105710.0,0.51104982]
[1750034131130,0.76542402,105730.0,105710.0,0.51104982]
[1750034132221,0.3713,105730.0,105710.0,0.51104982]
[1750034133271,0.4478895,105730.0,105710.0,0.5393871]
[1750034134883,0.356,105730.0,105710.0,0.5393871]
[1750034135906,0.341,105730.0,105710.0,0.5393871]
[1750034137087,0.3718,105730.0,105710.0,0.5393871]
[1750034137866,0.3565,105730.0,105710.0,0.3815071]
[1750034138076,0.76592402,105730.0,105710.0,0.5074871]
[1750034138297,0.84350916,105730.0,105710.0,0.47914982]
[1750034138711,0.86350916,105730.0,105710.0,0.47914982]
[1750034138909,0.86350916,105730.0,105710.0,0.5074871]
[1750034139138,0.86350916,105730.0,105710.0,0.47898982]
[1750034140422,0.86350916,105730.0,105710.0,0.47890982]
[1750034140423,0.3918,105730.0,105710.0,0.47890982]
[1750034141255,0.3918,105730.0,105710.0,0.5072471]
[1750034141468,0.3918,105730.0,105710.0,0.47890982]
[1750034141706,0.77042402,105730.0,105710.0,0.47890982]
[1750034141905,0.39412402,105720.0,105710.0,0.32146982]
[1750034142141,0.75022402,105720.0,105710.0,0.47890982]
[1750034142345,0.76522402,105720.0,105710.0,0.47890982]
[1750034142556,0.76522402,105720.0,105710.0,0.18010982]
[1750034143200,0.3711,105720.0,105710.0,0.18010982]
[1750034143441,0.3711,105720.0,105710.0,0.18110982]
[1750034143931,0.3711,105720.0,105710.0,0.18210982]
[1750034144362,0.3711,105720.0,105710.0,0.02466982]
[1750034144665,0.8533706,105720.0,105710.0,0.002]
[1750034144903,0.94961236,105720.0,105710.0,0.002]
[1750034145818,6.56559723,105720.0,105710.0,0.002]
[1750034146035,6.58451396,105720.0,105710.0,0.002]
[1750034146249,6.61296296,105720.0,105710.0,0.00092]
[1750034146471,6.6318804,105720.0,105710.0,0.00092]
[1750034146691,0.0314,105700.0,105680.0,0.18009939]
[1750034146916,0.46266402,105700.0,105680.0,0.18009939]
[1750034147127,0.46266402,105700.0,105680.0,0.02269939]
[1750034147362,0.73412402,105690.0,105680.0,0.02269939]
[1750034147576,0.73412402,105690.0,105670.0,0.07558936]
[1750034147577,0.86176578,105690.0,105670.0,0.07558936]
[1750034147784,0.86176578,105690.0,105670.0,0.09828062]
[1750034148002,0.90289772,105690.0,105670.0,0.09837026]
[1750034148216,0.90289772,105690.0,105680.0,0.001]
[1750034148437,0.90289772,105690.0,105670.0,8.964e-05]
[1750034148652,0.86176578,105690.0,105670.0,0.02276518]
[1750034149132,0.90119829,105690.0,105670.0,0.02276518]
[1750034149411,0.90119829,105690.0,105680.0,0.002]
[1750034149890,0.90119829,105690.0,105680.0,0.001]
[1750034150123,0.99734751,105690.0,105680.0,0.001]
[1750034150560,0.99734751,105690.0,105670.0,8.964e-05]
[1750034150819,0.99734751,105690.0,105670.0,0.00108964]
[1750034151036,0.03943251,105690.0,105680.0,0.0324]
[1750034151508,0.34,105700.0,105690.0,0.0164]
[1750034151737,0.37768988,105700.0,105690.0,0.42662402]
[1750034151995,0.7718139,105700.0,105680.0,0.2988]
[1750034152235,0.84899529,105700.0,105680.0,0.35694423]
[1750034152695,0.84899529,105700.0,105680.0,0.3343]
[1750034152931,0.87979529,105700.0,105680.0,0.3152]
[1750034153443,0.86409529,105700.0,105680.0,0.33783953]
[1750034153633,0.86409529,105700.0,105680.0,0.33783935]
[1750034154081,0.86409529,105700.0,105680.0,0.3152]
[1750034154530,0.46997127,105700.0,105680.0,0.3152]
[1750034155419,0.88029529,105700.0,105680.0,0.3152]
[1750034155645,0.97653705,105700.0,105680.0,0.2988]
[1750034156601,0.89935566,105700.0,105680.0,0.2988]
[1750034156836,0.47393164,105700.0,105680.0,0.3306]
[1750034157320,0.47393164,105700.0,105680.0,0.0318]
[1750034163581,0.13393164,105700.0,105680.0,0.05444505]
[1750034164007,0.03768988,105700.0,105690.0,0.0162]
[1750034164132,0.03768988,105700.0,105690.0,0.46995748]
[1750034164358,5.05,105710.0,105700.0,0.0162]
[1750034165852,5.05,105710.0,105700.0,0.0323]
[1750034166056,0.04323869,105710.0,105700.0,0.0323]
[1750034167211,0.04323869,105710.0,105700.0,0.1893]
[1750034168776,0.04323869,105710.0,105700.0,0.0323]
[1750034169014,0.04323869,105710.0,105700.0,0.18926]
[1750034170112,0.04323869,105710.0,105700.0,0.46348147]
[1750034170360,0.04323869,105710.0,105700.0,0.60600942]
[1750034170703,0.04323869,105710.0,105700.0,0.2118854]
[1750034170921,0.04323869,105710.0,105700.0,0.0549654]
[1750034171166,0.04323869,105710.0,105700.0,0.2118854]
[1750034175182,0.04323869,105710.0,105700.0,0.5106854]
[1750034178443,0.04323869,105710.0,105700.0,0.5106454]
[1750034182005,0.04493869,105710.0,105700.0,0.5106454]
[1750034182227,0.04493869,105710.0,105700.0,0.3537654]
[1750034182450,0.43906271,105710.0,105700.0,0.3214654]
[1750034182671,0.43906271,105710.0,105700.0,0.4783454]
[1750034183102,0.43906271,105710.0,105700.0,0.4938454]
[1750034183103,0.04493869,105710.0,105700.0,0.4938454]
[1750034183321,0.04493869,105710.0,105700.0,0.56195986]
[1750034183585,0.04493869,105710.0,105700.0,0.90386942]
[1750034186077,0.04493869,105710.0,105700.0,0.90389264]
[1750034186291,0.04493869,105710.0,105700.0,0.50976862]
[1750034186972,0.04493869,105710.0,105700.0,0.49386862]
[1750034189661,0.04493869,105710.0,105700.0,0.60561784]
[1750034189884,0.04493869,105710.0,105700.0,0.63397862]
[1750034190564,0.04493869,105710.0,105700.0,1.02810264]
[1750034190990,0.04493869,105710.0,105700.0,0.5378294]
[1750034192629,0.04493869,105710.0,105700.0,0.53786285]
[1750034194231,0.04493869,105710.0,105700.0,0.93198687]
[1750034195737,0.04493869,105710.0,105700.0,0.53786285]
[1750034195953,0.04493869,105710.0,105700.0,0.93198687]
[1750034196629,0.04493869,105710.0,105700.0,0.38098285]
[1750034196855,0.04493869,105710.0,105700.0,0.53786285]
[1750034198496,0.04493869,105710.0,105700.0,1.02813609]
[1750034198937,0.04493869,105710.0,105700.0,0.93198687]
[1750034199160,0.04493869,105710.0,105700.0,0.53786285]
[1750034200055,0.0057,105710.0,105700.0,1.02822863]
[1750034200275,0.0057,105710.0,105700.0,0.67187614]
[1750034200513,0.0057,105710.0,105700.0,1.0376208]
[1750034200728,0.0057,105710.0,105700.0,1.13377002]
[1750034200966,0.0037,105710.0,105700.0,1.13377002]
[1750034201189,0.0037,105710.0,105700.0,1.0376208]
[1750034201621,0.00940276,105710.0,105700.0,1.0376208]
[1750034201983,0.93236402,105750.0,105710.0,0.0323]
[1750034201984,0.80301126,105750.0,105710.0,0.0323]
[1750034201985,5.05,105740.0,105710.0,0.0323]
[1750034202185,5.05,105740.0,105720.0,0.17294]
[1750034202387,5.05,105740.0,105720.0,0.19564349]
[1750034202948,0.02867662,105740.0,105720.0,0.19564349]
[1750034203196,0.02914755,105740.0,105720.0,0.19564349]
[1750034203411,0.00447093,105740.0,105720.0,0.19564349]
[1750034204066,0.00747093,105740.0,105720.0,0.19564349]
[1750034204292,0.34,105730.0,105720.0,0.19564349]
[1750034205613,0.341,105730.0,105720.0,0.19564349]
[1750034206297,0.343,105730.0,105720.0,0.19564349]
[1750034206521,0.77643911,105730.0,105720.0,0.02270349]
[1750034206739,5.85773911,105730.0,105710.0,0.2988]
[1750034206965,0.39412402,105720.0,105710.0,0.47834577]
[1750034207177,0.80773911,105730.0,105710.0,0.17954577]
[1750034207414,5.05,105720.0,105710.0,0.17954577]
[1750034208056,5.05,105720.0,105710.0,0.19554577]
[1750034208945,0.003,105730.0,105720.0,0.0158]
[1750034209155,0.001,105730.0,105720.0,0.05380577]
[1750034209578,5.05,105730.0,105720.0,0.05380577]
[1750034210432,5.052,105730.0,105720.0,0.05380577]
[1750034210640,0.002,105730.0,105720.0,0.05380577]
[1750034211738,0.003,105730.0,105720.0,0.05380577]
[1750034214298,0.003,105730.0,105720.0,0.02270577]
[1750034214510,0.003,105730.0,105720.0,0.17954577]
[1750034214731,5.44712402,105730.0,105720.0,0.02270577]
[1750034214953,0.0322,105720.0,105710.0,0.2988]
[1750034215187,0.42632402,105720.0,105710.0,0.32150725]
[1750034215626,0.52256578,105720.0,105710.0,0.02270725]
[1750034216067,0.52256578,105720.0,105700.0,0.15684]
[1750034216322,0.58443728,105720.0,105700.0,0.02270754]
[1750034219495,5.05,105710.0,105700.0,0.02270754]
[1750034220137,5.05,105710.0,105700.0,0.03860754]
[1750034220385,5.05,105710.0,105700.0,0.05450754]
[1750034220606,0.016,105720.0,105700.0,0.44863156]
[1750034220823,5.05,105720.0,105710.0,0.0311]
[1750034221033,5.05,105720.0,105710.0,0.05380754]
[1750034224097,0.39412402,105720.0,105710.0,0.02270754]
[1750034224345,5.05,105710.0,105690.0,0.25369976]
[1750034224557,5.05,105710.0,105690.0,0.33487639]
[1750034224781,5.05,105710.0,105700.0,0.0157]
[1750034225014,5.05,105710.0,105700.0,0.0534064]
[1750034225262,5.05,105720.0,105710.0,0.0307]
[1750034225482,5.05,105720.0,105710.0,0.0534064]
[1750034227921,5.05,105720.0,105710.0,0.0384064]
[1750034230075,5.05,105720.0,105710.0,0.0550064]
[1750034231486,0.77581402,105730.0,105710.0,0.0550064]
[1750034231749,0.87205578,105730.0,105710.0,0.0550064]
[1750034232165,0.57408098,105730.0,105710.0,0.0550064]
[1750034232376,0.34,105720.0,105710.0,0.0550064]
[1750034234760,0.34,105720.0,105710.0,0.0384064]
[1750034234978,0.34,105720.0,105710.0,0.0534064]
[1750034235183,0.34,105720.0,105710.0,0.44753042]
[1750034235389,0.34,105720.0,105710.0,0.54367964]
[1750034236020,0.34,105720.0,105710.0,0.0534064]
[1750034236726,0.34,105720.0,105710.0,0.44753042]
[1750034237153,0.34,105720.0,105710.0,0.3522064]
[1750034237361,0.04369,105730.0,105710.0,0.3522064]
[1750034237574,0.38369,105730.0,105720.0,0.0307]
[1750034237780,0.38369,105730.0,105720.0,0.0534064]
[1750034238842,0.38169,105730.0,105720.0,0.0534064]
[1750034239055,0.38369,105730.0,105720.0,0.0534064]
[1750034239527,0.38469,105730.0,105720.0,0.0534064]
[1750034239996,0.38369,105730.0,105720.0,0.0534064]
[1750034240227,0.04369,105730.0,105720.0,0.0534064]
[1750034240451,0.04469,105730.0,105720.0,0.0534064]
[1750034240930,0.00469,105730.0,105720.0,0.0134064]
[1750034241181,0.00469,105730.0,105720.0,0.51259826]
[1750034241480,0.00469,105730.0,105720.0,0.93511051]
[1750034241980,0.00469,105730.0,105720.0,1.03135227]
[1750034242195,0.00469,105730.0,105720.0,1.0691238]
[1750034242438,0.00269,105730.0,105720.0,1.0691238]
[1750034242671,0.00169,105730.0,105720.0,1.07271227]
[1750034242894,0.00169,105730.0,105720.0,1.69378678]
[1750034243178,0.00169,105730.0,105720.0,1.68431607]
[1750034243411,0.00169,105730.0,105720.0,1.68631607]
[1750034243642,0.00169,105730.0,105720.0,1.68431616]
[1750034244109,0.00169,105730.0,105720.0,1.71971616]
[1750034244338,0.00169,105730.0,105720.0,1.7142574]
[1750034244563,0.00169,105730.0,105720.0,1.72371616]
[1750034244785,0.00169,105730.0,105720.0,1.6801243]
[1750034245003,0.00169,105730.0,105720.0,1.47202773]
[1750034245219,0.00169,105730.0,105720.0,0.88920265]
[1750034245463,0.00169,105730.0,105720.0,0.51394201]
[1750034245763,0.00169,105730.0,105720.0,1.10614603]
[1750034245976,0.00169,105730.0,105720.0,1.07782371]
[1750034246414,0.00169,105730.0,105720.0,1.10613762]
[1750034247610,0.00169,105730.0,105720.0,1.06836609]
[1750034251140,0.00169,105730.0,105720.0,1.10613762]
[1750034251829,0.00169,105730.0,105720.0,1.20228684]
[1750034252504,0.00169,105730.0,105720.0,1.78558982]
[1750034252757,0.00169,105730.0,105720.0,1.78170403]
[1750034253003,0.00169,105730.0,105720.0,1.87552462]
[1750034253221,0.00169,105730.0,105720.0,1.83775309]
[1750034253922,0.00169,105730.0,105720.0,2.17775309]
[1750034254672,0.00047093,105740.0,105730.0,0.56008499]
[1750034254909,5.05,105790.0,105770.0,0.39412402]
[1750034255158,5.05,105790.0,105770.0,0.86295402]
[1750034255388,5.05,105790.0,105770.0,0.90075488]
[1750034255389,0.027949,105790.0,105770.0,0.90075488]
[1750034255609,0.367949,105790.0,105770.0,0.96822951]
[1750034255836,0.34,105790.0,105770.0,0.99081843]
[1750034256033,0.3678146,105790.0,105770.0,0.99081843]
[1750034256299,0.0278146,105790.0,105770.0,0.99090807]
[1750034256536,0.0328146,105790.0,105770.0,0.99090807]
[1750034256783,0.005,105790.0,105770.0,0.96831915]
[1750034256999,0.005,105790.0,105770.0,0.99089718]
[1750034257959,0.005,105790.0,105770.0,0.59677316]
[1750034258182,0.005,105790.0,105770.0,0.48411964]
[1750034259577,0.005,105790.0,105770.0,0.87824366]
[1750034259797,0.03290354,105790.0,105770.0,0.87824366]
[1750034260021,0.0332743,105790.0,105770.0,0.87824366]
[1750034260640,0.0332743,105790.0,105770.0,0.46891964]
[1750034260841,0.0639743,105790.0,105770.0,0.2187016]
[1750034261050,0.0486743,105790.0,105770.0,0.2338016]
[1750034261553,0.0332743,105790.0,105780.0,0.0153]
[1750034262008,0.0332743,105790.0,105770.0,0.62822562]
[1750034262218,0.0332743,105790.0,105780.0,0.015]
[1750034262427,0.0312743,105790.0,105780.0,0.015]
[1750034262694,0.0282743,105790.0,105770.0,0.61292562]
[1750034262903,0.0292743,105790.0,105770.0,0.65047638]
[1750034263113,0.003,105790.0,105770.0,0.65047638]
[1750034263323,0.05937613,105790.0,105770.0,0.65047638]
[1750034263534,0.003,105790.0,105770.0,0.63547638]
[1750034263790,0.02882046,105790.0,105780.0,0.0158]
[1750034264013,0.001,105790.0,105780.0,0.40992402]
[1750034264227,0.001,105790.0,105780.0,0.42642402]
[1750034264436,0.0155,105800.0,105780.0,0.0323]
[1750034264639,0.003,105790.0,105780.0,0.0323]
[1750034264857,0.003,105790.0,105780.0,0.18898]
[1750034265078,0.002,105790.0,105780.0,0.18898]
[1750034265291,0.002,105790.0,105780.0,0.28186856]
[1750034265511,0.003,105790.0,105780.0,0.77223434]
[1750034265726,0.003,105790.0,105780.0,0.7947785]
[1750034265935,0.05703597,105800.0,105780.0,1.0612785]
[1750034266156,0.05703597,105800.0,105790.0,0.032]
[1750034266390,0.02537614,105810.0,105790.0,0.032]
[1750034266598,0.04127614,105810.0,105790.0,0.032]
[1750034266819,0.04127614,105810.0,105800.0,0.15668]
[1750034267244,0.06887801,105810.0,105800.0,0.15668]
[1750034267761,0.02760187,105810.0,105800.0,0.237128]
[1750034267968,0.02760187,105810.0,105800.0,0.58250402]
[1750034268182,0.34887523,105820.0,105800.0,0.18838]
[1750034268398,0.34887499,105820.0,105800.0,0.58486671]
[1750034268620,0.34887495,105820.0,105800.0,0.64161846]
[1750034268842,0.02798349,105820.0,105800.0,0.64161846]
[1750034269058,0.03685827,105820.0,105810.0,0.39412402]
[1750034269274,0.00887441,105820.0,105810.0,0.42582402]
[1750034269487,0.0284986,105830.0,105810.0,0.65127222]
[1750034269700,0.0284986,105830.0,105820.0,0.66526804]
[1750034269920,0.01887337,105850.0,105830.0,0.0158]
[1750034270103,0.01887337,105850.0,105830.0,0.08367058]
[1750034270368,0.01934452,105850.0,105840.0,0.15664]
[1750034270818,0.35934449,105850.0,105840.0,0.15664]
[1750034271038,0.35047151,105850.0,105840.0,0.15664]
[1750034271276,0.78194045,105850.0,105840.0,0.1566]
[1750034271496,0.86168449,105850.0,105840.0,0.1566]
[1750034271715,0.86368449,105850.0,105840.0,0.1566]
[1750034272139,0.8636845,105850.0,105840.0,0.1566]
[1750034272351,0.8676845,105850.0,105840.0,0.1566]
[1750034272598,0.86768449,105850.0,105840.0,0.1566]
[1750034272870,0.89524164,105850.0,105840.0,0.1566]
[1750034273064,0.89524164,105850.0,105820.0,0.12804176]
[1750034273065,0.89036866,105850.0,105820.0,0.12804176]
[1750034273279,0.73412402,105830.0,105810.0,0.0312]
[1750034273495,0.73412402,105830.0,105810.0,0.02247613]
[1750034273496,0.34,105830.0,105810.0,0.02247613]
[1750034273711,0.34,105830.0,105790.0,0.13504127]
[1750034273712,5.05,105810.0,105790.0,0.13504127]
[1750034273941,0.73412402,105810.0,105790.0,0.27057574]
[1750034274194,0.34,105810.0,105790.0,0.24748936]
[1750034274414,0.34,105810.0,105790.0,0.67999948]
[1750034274834,0.34,105810.0,105790.0,0.28587546]
[1750034275052,0.34,105810.0,105790.0,0.2859651]
[1750034275263,0.34,105810.0,105790.0,0.05477574]
[1750034275474,0.0157,105830.0,105800.0,0.1724]
[1750034275683,0.34,105810.0,105800.0,0.1724]
[1750034276102,0.34,105810.0,105800.0,0.1881]
[1750034276294,0.34,105820.0,105800.0,0.19714687]
[1750034276542,0.34,105820.0,105810.0,0.0158]
[1750034277307,0.001,105830.0,105810.0,0.0158]
[1750034277527,0.001,105830.0,105820.0,0.1566]
[1750034277933,0.36974085,105840.0,105820.0,0.1566]
[1750034278141,5.05,105830.0,105820.0,0.1566]
[1750034278364,0.00887423,105830.0,105810.0,0.1724]
[1750034278588,0.45144176,105840.0,105810.0,0.1724]
[1750034278795,0.34,105820.0,105810.0,0.1724]
[1750034279014,0.34887386,105820.0,105810.0,0.1724]
[1750034279230,0.34887384,105820.0,105810.0,0.1724]
[1750034279423,0.34,105820.0,105810.0,0.1724]
[1750034279840,0.00887381,105820.0,105810.0,0.1724]
[1750034280046,0.0088738,105820.0,105810.0,0.1724]
[1750034280269,0.34,105820.0,105810.0,0.1724]
[1750034280452,0.34,105820.0,105810.0,0.20711]
[1750034280668,0.34887381,105820.0,105810.0,0.22961201]
[1750034280887,5.39,105830.0,105820.0,0.015]
[1750034281108,0.08182908,105850.0,105820.0,0.015]
[1750034281332,5.05,105840.0,105820.0,0.035631]
[1750034281573,5.05,105840.0,105820.0,0.03799339]
[1750034281810,5.05,105840.0,105820.0,0.05419339]
[1750034282041,0.34887322,105840.0,105820.0,0.0312]
[1750034282259,0.34887317,105840.0,105820.0,0.05370366]
[1750034282496,0.34,105840.0,105820.0,0.05370366]
[1750034282732,0.34887317,105840.0,105820.0,0.05370366]
[1750034282989,0.002,105840.0,105830.0,0.0155]
[1750034283206,0.01087314,105840.0,105830.0,0.15656]
[1750034283445,0.002,105840.0,105830.0,0.15656]
[1750034283664,0.01087313,105840.0,105830.0,0.15656]
[1750034284184,0.01287313,105840.0,105830.0,0.15664964]
[1750034284423,0.004,105840.0,105830.0,0.15664964]
[1750034284656,0.00887295,105840.0,105830.0,0.15664964]
[1750034284865,0.34887295,105840.0,105830.0,0.15664964]
[1750034285094,0.40398733,105840.0,105830.0,8.964e-05]
[1750034285556,0.35287295,105840.0,105830.0,8.964e-05]
[1750034286414,0.344,105840.0,105830.0,10.00008964]
[1750034286640,0.35287295,105840.0,105830.0,10.00008964]
[1750034287519,0.344,105840.0,105830.0,10.00008964]
[1750034287728,0.35287295,105840.0,105830.0,10.00008964]
[1750034289283,0.344,105840.0,105830.0,10.00008964]
[1750034289972,0.35287295,105840.0,105830.0,10.00008964]
[1750034290905,0.344,105840.0,105830.0,10.00008964]
[1750034291379,0.35287306,105840.0,105830.0,10.00008964]
[1750034292209,5.98852827,105840.0,105830.0,10.00008964]
[1750034292422,5.99419551,105840.0,105830.0,10.00008964]
[1750034292635,5.99419551,105840.0,105830.0,9.99393688]
[1750034292636,6.00307023,105840.0,105830.0,9.99393688]
[1750034292852,5.99419551,105840.0,105830.0,9.99393688]
[1750034293299,6.00307033,105840.0,105830.0,9.99393688]
[1750034293526,6.00307021,105840.0,105830.0,9.99393688]
[1750034293740,6.00307014,105840.0,105830.0,9.99393688]
[1750034293952,6.00307017,105840.0,105830.0,9.99393688]
[1750034294406,5.99419551,105840.0,105830.0,9.99393688]
[1750034294623,6.00307016,105840.0,105830.0,9.98393688]
[1750034294842,5.99419551,105840.0,105830.0,9.98393688]
[1750034295042,6.00307017,105840.0,105830.0,9.98393688]
[1750034295506,6.00307032,105840.0,105830.0,9.98393688]
[1750034295714,5.99419551,105840.0,105830.0,9.98393688]
[1750034296162,6.00307034,105840.0,105830.0,9.98393688]
[1750034296612,5.99419551,105840.0,105830.0,9.98393688]
[1750034296830,6.0030703,105840.0,105830.0,9.98393688]
[1750034297023,5.99419551,105840.0,105830.0,9.98393688]
[1750034297234,6.00307029,105840.0,105830.0,9.98393688]
[1750034297496,5.54555737,105840.0,105830.0,9.98393688]
[1750034297728,5.52419078,105840.0,105830.0,9.98393688]
[1750034297951,5.50799065,105840.0,105830.0,9.98393688]
[1750034298220,5.49911652,105840.0,105830.0,9.98393688]
[1750034299312,5.92312108,105840.0,105830.0,9.98393688]
[1750034299560,6.01039614,105840.0,105830.0,9.98393688]
[1750034299766,6.01927074,105840.0,105830.0,9.98393688]
[1750034300000,6.01039614,105840.0,105830.0,9.98393688]
[1750034300461,6.01927079,105840.0,105830.0,9.98393688]
[1750034301130,6.0192707,105840.0,105830.0,9.98393688]
[1750034301567,6.01039614,105840.0,105830.0,9.98393688]
[1750034301771,6.01927067,105840.0,105830.0,9.98393688]
[1750034301978,6.01039614,105840.0,105830.0,9.98393688]
[1750034302393,6.01927067,105840.0,105830.0,9.98393688]
[1750034302608,6.01039614,105840.0,105830.0,9.98393688]
[1750034303465,6.01927067,105840.0,105830.0,9.98393688]
[1750034303672,6.01927063,105840.0,105830.0,9.98393688]
[1750034303887,6.0192706,105840.0,105830.0,9.98393688]
[1750034304088,6.01927058,105840.0,105830.0,9.98393688]
[1750034304315,6.01927054,105840.0,105830.0,9.98393688]
[1750034304511,6.01039614,105840.0,105830.0,9.98393688]
[1750034304722,6.01927061,105840.0,105830.0,9.98393688]
[1750034304931,6.01927066,105840.0,105830.0,9.98393688]
[1750034305357,6.01039614,105840.0,105830.0,9.98393688]
[1750034305568,6.01927071,105840.0,105830.0,9.98393688]
[1750034305976,6.01039614,105840.0,105830.0,9.98393688]
[1750034306190,5.89162149,105840.0,105830.0,9.98393688]
[1750034306393,5.88274692,105840.0,105830.0,9.98393688]
[1750034306608,5.89162124,105840.0,105830.0,9.98393688]
[1750034306810,5.88274692,105840.0,105830.0,9.98393688]
[1750034307021,5.55162141,105840.0,105830.0,9.98393688]
[1750034307259,5.54274692,105840.0,105830.0,9.98393688]
[1750034307467,5.55162146,105840.0,105830.0,9.98393688]
[1750034307684,5.55162142,105840.0,105830.0,9.98393688]
[1750034308106,5.67039614,105840.0,105830.0,9.98393688]
[1750034308312,5.67927074,105840.0,105830.0,9.98393688]
[1750034308538,5.58312152,105840.0,105830.0,9.98393688]
[1750034308749,5.58312153,105840.0,105830.0,9.98393688]
[1750034308989,5.57424692,105840.0,105830.0,9.98393688]
[1750034309199,5.89162143,105840.0,105830.0,9.98393688]
[1750034309409,5.89162134,105840.0,105830.0,9.98393688]
[1750034309643,5.88274692,105840.0,105830.0,9.98393688]
[1750034309860,5.52253163,105840.0,105830.0,9.98393688]
[1750034310069,5.52253134,105840.0,105830.0,9.99963688]
[1750034310849,5.90722636,105840.0,105830.0,10.15615688]
[1750034311472,5.91610048,105840.0,105830.0,10.15615688]
[1750034311885,5.9161005,105840.0,105830.0,10.15615688]
[1750034312287,5.90722636,105840.0,105830.0,10.15615688]
[1750034312488,5.9161005,105840.0,105830.0,10.15615688]
[1750034312962,5.5225315,105840.0,105830.0,10.15615688]
[1750034313864,5.51365737,105840.0,105830.0,10.15615688]
[1750034314540,5.51365737,105840.0,105830.0,10.14045688]
[1750034314750,5.98822565,105840.0,105830.0,10.14045688]
[1750034315000,5.97877823,105840.0,105830.0,10.14045688]
[1750034315208,6.00719323,105840.0,105830.0,10.14045688]
[1750034315860,5.99719323,105840.0,105830.0,10.14045688]
[1750034317406,5.99719323,105840.0,105830.0,9.98393688]
[1750034317638,5.99719323,105840.0,105830.0,10.14045688]
[1750034320355,6.03864065,105840.0,105830.0,9.97887688]
[1750034320579,6.02919323,105840.0,105830.0,9.97887688]
[1750034320809,6.01359323,105840.0,105830.0,9.97887688]
[1750034321055,5.55791987,105840.0,105830.0,9.97887688]
[1750034321231,5.92689151,105840.0,105830.0,9.97887688]
[1750034321543,5.90104401,105840.0,105830.0,9.97887688]
[1750034321752,5.51753152,105840.0,105830.0,10.14199046]